bitfinex/quotes_BTCUSD_20241202
["timestamp","ask_amount","ask_price","bid_price","bid_amount"]
[1733115661508,0.21164177,96807.0,96804.0,0.0238652]
[1733115661722,0.41823877,96807.0,96804.0,0.0238652]
[1733115662819,0.41823877,96807.0,96804.0,0.0268652]
[1733115663064,0.41823877,96807.0,96804.0,0.0318652]
[1733115663292,0.41823877,96807.0,96804.0,0.0268652]
[1733115663749,0.41823877,96807.0,96804.0,0.0258652]
[1733115663986,0.21164177,96807.0,96804.0,0.0258652]
[1733115664195,0.21164177,96807.0,96804.0,0.0268652]
[1733115665091,0.41823877,96807.0,96804.0,0.0268652]
[1733115665377,0.41823877,96807.0,96804.0,0.0038652]
[1733115671543,0.41996957,96807.0,96804.0,0.0038652]
[1733115672443,0.2525,96805.0,96804.0,0.0038652]
[1733115672662,0.43504521,96805.0,96804.0,0.0038652]
[1733115672885,0.44008374,96805.0,96804.0,0.0038652]
[1733115673357,0.206622,96795.0,96794.0,0.0008646]
[1733115673577,0.43716721,96795.0,96794.0,0.0008646]
[1733115674023,0.4421977,96795.0,96794.0,0.0008646]
[1733115674477,0.46244525,96795.0,96794.0,0.0008646]
[1733115674721,0.46244525,96795.0,96794.0,0.00145818]
[1733115675370,0.54202949,96795.0,96794.0,0.00145818]
[1733115675584,0.54602949,96795.0,96794.0,0.00145818]
[1733115675842,0.55921727,96795.0,96794.0,0.00145818]
[1733115676033,0.56421727,96795.0,96794.0,0.00245818]
[1733115677569,0.48463303,96795.0,96794.0,0.00245818]
[1733115678724,0.33668782,96795.0,96794.0,0.00245818]
[1733115678727,0.25408782,96795.0,96794.0,0.00245818]
[1733115678951,0.22065249,96795.0,96794.0,0.02545818]
[1733115679666,0.21665249,96795.0,96794.0,0.02545818]
[1733115679883,0.21165249,96795.0,96794.0,0.11569195]
[1733115680093,0.21665249,96795.0,96794.0,0.11569195]
[1733115680818,0.21765249,96795.0,96794.0,0.11569195]
[1733115681294,0.22065249,96795.0,96794.0,0.02445818]
[1733115681755,0.21765249,96795.0,96794.0,0.02445818]
[1733115681970,0.21165249,96795.0,96794.0,0.02445818]
[1733115682185,0.21265249,96795.0,96794.0,0.02445818]
[1733115690919,0.29505249,96795.0,96794.0,0.02445818]
[1733115694536,0.52412565,96795.0,96794.0,0.02445818]
[1733115694976,0.44505249,96795.0,96794.0,0.02445818]
[1733115695951,0.44505249,96795.0,96794.0,0.00145818]
[1733115695952,0.5478977,96795.0,96794.0,0.00145818]
[1733115699116,0.60406393,96795.0,96794.0,1.8e-07]
[1733115699346,0.5952977,96795.0,96794.0,1.8e-07]
[1733115699569,0.69812916,96795.0,96794.0,1.8e-07]
[1733115700435,0.70312916,96795.0,96794.0,1.8e-07]
[1733115700860,0.69812916,96795.0,96794.0,1.8e-07]
[1733115701079,0.70312916,96795.0,96794.0,1.8e-07]
[1733115701508,0.70212916,96795.0,96794.0,1.8e-07]
[1733115701830,0.70812916,96795.0,96794.0,0.00100018]
[1733115702074,0.70212916,96795.0,96794.0,1.8e-07]
[1733115702265,0.70812916,96795.0,96794.0,0.00100018]
[1733115704213,0.70562916,96795.0,96794.0,0.00100018]
[1733115705345,0.71439539,96795.0,96794.0,1.8e-07]
[1733115705616,0.71439539,96795.0,96789.0,0.0008649]
[1733115705617,0.435332,96790.0,96789.0,0.0008649]
[1733115705859,0.62853017,96790.0,96789.0,0.00092426]
[1733115706073,0.63353862,96790.0,96789.0,0.00092426]
[1733115706922,0.63753862,96790.0,96789.0,0.00092426]
[1733115707762,0.63753862,96790.0,96789.0,2.6e-07]
[1733115707980,0.64453862,96790.0,96789.0,0.00100026]
[1733115708213,0.64453862,96790.0,96789.0,2.6e-07]
[1733115708657,0.6668305,96790.0,96789.0,2.6e-07]
[1733115712151,0.56771131,96790.0,96789.0,2.6e-07]
[1733115713668,0.48901131,96790.0,96789.0,2.6e-07]
[1733115714458,0.3861661,96790.0,96789.0,2.6e-07]
[1733115716289,0.3861661,96790.0,96789.0,0.08090026]
[1733115716526,0.22264045,96790.0,96789.0,0.19513403]
[1733115717625,0.21564045,96790.0,96789.0,0.19513377]
[1733115718060,0.21764045,96790.0,96789.0,0.19513377]
[1733115718288,0.21364045,96790.0,96789.0,0.19513377]
[1733115718499,0.21464045,96790.0,96789.0,0.19599937]
[1733115718710,0.21637165,96790.0,96789.0,0.19599937]
[1733115721267,0.21637165,96790.0,96789.0,0.0008656]
[1733115722353,0.28040813,96790.0,96789.0,0.0008656]
[1733115722566,0.46921686,96790.0,96789.0,0.0008656]
[1733115723438,0.55241686,96790.0,96789.0,0.0008656]
[1733115724768,0.55041686,96790.0,96789.0,0.0008656]
[1733115725226,0.55741686,96790.0,96789.0,0.0018656]
[1733115725463,0.55041686,96790.0,96789.0,0.0008656]
[1733115725681,0.64855786,96790.0,96789.0,0.0008656]
[1733115725889,0.64755786,96790.0,96789.0,0.0008656]
[1733115726809,0.65055786,96790.0,96789.0,0.0008656]
[1733115727268,0.65555786,96790.0,96789.0,0.0018656]
[1733115727694,0.65955786,96790.0,96789.0,0.0018656]
[1733115728343,0.56141686,96790.0,96789.0,0.0018656]
[1733115729093,0.37537165,96790.0,96789.0,0.0018656]
[1733115729356,0.22537165,96790.0,96789.0,0.0248656]
[1733115729619,0.22537165,96790.0,96789.0,0.11609937]
[1733115729822,0.01873965,96790.0,96789.0,0.11609937]
[1733115730031,0.01873965,96790.0,96789.0,0.34574458]
[1733115730223,0.0097312,96790.0,96789.0,0.34574458]
[1733115730464,0.00817865,96790.0,96789.0,0.34474458]
[1733115730718,0.0027312,96790.0,96789.0,0.34474458]
[1733115730931,0.0037312,96790.0,96789.0,0.34474458]
[1733115731152,0.0027312,96790.0,96789.0,0.34474458]
[1733115731367,0.0027312,96790.0,96789.0,0.34574458]
[1733115732044,0.00717865,96790.0,96789.0,0.34574458]
[1733115732273,0.0017312,96790.0,96789.0,0.34674458]
[1733115743022,0.0017308,96804.0,96803.0,0.21683377]
[1733115743497,0.00721644,96804.0,96803.0,0.23983377]
[1733115743739,0.0017308,96804.0,96803.0,0.23983377]
[1733115744429,0.0037308,96804.0,96803.0,0.54928398]
[1733115744652,0.0087308,96804.0,96803.0,0.64928398]
[1733115746026,0.0037308,96804.0,96803.0,0.64928398]
[1733115746257,0.0017308,96804.0,96803.0,0.64928398]
[1733115746493,0.0037308,96804.0,96803.0,0.64928398]
[1733115746722,0.0027308,96804.0,96803.0,0.64928398]
[1733115747160,0.0017308,96804.0,96803.0,0.64928398]
[1733115747380,0.0157308,96804.0,96803.0,0.65128398]
[1733115747828,0.0017308,96804.0,96803.0,0.64928398]
[1733115748083,0.0077308,96804.0,96803.0,0.65028398]
[1733115748315,0.0157308,96804.0,96803.0,0.65128398]
[1733115751477,0.0157308,96804.0,96803.0,0.52828398]
[1733115752871,0.0157308,96804.0,96803.0,0.55128398]
[1733115753319,0.0017308,96804.0,96803.0,0.54928398]
[1733115753758,0.0077308,96804.0,96803.0,0.54928398]
[1733115754195,0.0107308,96804.0,96803.0,0.54928398]
[1733115754410,0.0117308,96804.0,96803.0,0.55828398]
[1733115754652,0.0087308,96804.0,96803.0,0.55828398]
[1733115754869,0.0087308,96804.0,96803.0,0.27117898]
[1733115755075,0.0087308,96804.0,96803.0,0.22607898]
[1733115755970,0.0097308,96804.0,96803.0,0.23307898]
[1733115756398,0.01723235,96804.0,96803.0,0.23307898]
[1733115756848,0.0097308,96804.0,96803.0,0.23307898]
[1733115759661,0.01574538,96804.0,96803.0,0.23307898]
[1733115760128,0.22234838,96804.0,96803.0,0.23307898]
[1733115760613,0.22234838,96804.0,96803.0,0.10723377]
[1733115761089,0.22234838,96804.0,96803.0,0.016]
[1733115761320,0.22234838,96804.0,96803.0,0.10723377]
[1733115761529,0.22385202,96804.0,96803.0,0.10723377]
[1733115761737,0.22385202,96804.0,96803.0,0.016]
[1733115763084,0.22385202,96804.0,96803.0,0.10723377]
[1733115763795,0.22385202,96804.0,96803.0,0.016]
[1733115764029,0.22385202,96804.0,96803.0,0.10723377]
[1733115764494,0.22385202,96804.0,96803.0,0.016]
[1733115765397,0.22285202,96804.0,96803.0,0.009]
[1733115765608,0.21685202,96804.0,96803.0,0.009]
[1733115765827,0.2368535,96804.0,96803.0,0.004]
[1733115766065,0.2378535,96804.0,96803.0,0.009]
[1733115766283,0.2378535,96804.0,96802.0,0.09123377]
[1733115766755,0.2378535,96804.0,96803.0,0.002]
[1733115767445,0.2368535,96804.0,96802.0,0.09123377]
[1733115767861,0.2368535,96804.0,96802.0,0.09223377]
[1733115768955,0.2368535,96804.0,96802.0,0.09423377]
[1733115769167,0.2368535,96804.0,96802.0,0.09323377]
[1733115769624,0.2368535,96804.0,96803.0,0.001]
[1733115769863,0.2368535,96804.0,96802.0,0.09323377]
[1733115770288,0.2368535,96804.0,96803.0,0.00765065]
[1733115770744,0.2368535,96804.0,96803.0,0.00965065]
[1733115770950,0.2368535,96804.0,96803.0,0.01065065]
[1733115771609,0.2368535,96804.0,96803.0,0.00965065]
[1733115772036,0.21585202,96804.0,96803.0,0.00965065]
[1733115773630,0.21585202,96804.0,96803.0,0.01065065]
[1733115778433,0.00924902,96804.0,96803.0,0.10188442]
[1733115780149,0.00924902,96804.0,96803.0,0.01065065]
[1733115780589,0.00924902,96804.0,96803.0,0.10188442]
[1733115782537,0.21585202,96804.0,96803.0,0.10188442]
[1733115782759,0.00924902,96804.0,96803.0,0.10188442]
[1733115783203,0.00924902,96804.0,96803.0,0.22772963]
[1733115783615,0.0017308,96804.0,96803.0,0.22772963]
[1733115784291,0.0017308,96807.0,96806.0,0.09123377]
[1733115784519,0.0017308,96807.0,96806.0,0.35145756]
[1733115784740,0.0017308,96807.0,96806.0,0.34962963]
[1733115785425,0.0027308,96807.0,96806.0,0.35562963]
[1733115785664,0.0027308,96807.0,96806.0,0.34797898]
[1733115785878,0.0027308,96807.0,96806.0,0.35562924]
[1733115786293,0.0037308,96807.0,96806.0,0.36462924]
[1733115792089,0.0037308,96807.0,96806.0,0.35697898]
[1733115792311,0.0037308,96807.0,96806.0,0.36463239]
[1733115795442,0.0037308,96807.0,96806.0,0.35697898]
[1733115795708,0.0037308,96807.0,96806.0,0.4646232]
[1733115796326,0.0037308,96807.0,96806.0,0.5646232]
[1733115796604,0.0008652,96824.0,96823.0,0.29779577]
[1733115796834,0.0008652,96824.0,96823.0,0.5612852]
[1733115797706,0.0008652,96824.0,96823.0,0.5632852]
[1733115797926,0.00092453,96824.0,96823.0,0.5632852]
[1733115798390,0.00092453,96824.0,96823.0,0.5622852]
[1733115798598,0.00092453,96824.0,96823.0,0.5662852]
[1733115799235,0.00092453,96824.0,96823.0,0.55764098]
[1733115799483,0.00092453,96824.0,96823.0,0.56364098]
[1733115801089,0.00092453,96824.0,96823.0,0.48054098]
[1733115803277,0.00092453,96824.0,96823.0,0.4939163]
[1733115805859,0.0017304,96840.0,96827.0,0.206553]
[1733115806135,0.0017304,96840.0,96827.0,0.33422588]
[1733115806379,0.0017304,96840.0,96827.0,0.33239821]
[1733115807488,0.0017304,96840.0,96827.0,0.33539821]
[1733115808670,0.0017304,96840.0,96827.0,0.33939821]
[1733115812480,0.0017304,96840.0,96827.0,0.43063198]
[1733115816737,0.0017304,96840.0,96827.0,0.22407898]
[1733115817150,0.2082592,96839.0,96827.0,0.22407898]
[1733115817365,0.0017302,96839.0,96827.0,0.22407898]
[1733115818677,0.2082592,96839.0,96827.0,0.22407898]
[1733115819099,0.0017302,96839.0,96827.0,0.22407898]
[1733115819337,0.206531,96838.0,96827.0,0.22407898]
[1733115819552,0.0017302,96839.0,96827.0,0.22407898]
[1733115820671,0.0017302,96839.0,96828.0,0.229551]
[1733115820920,0.0017302,96839.0,96830.0,0.023]
[1733115821134,0.0017302,96839.0,96831.0,0.1046729]
[1733115821343,0.0017302,96839.0,96832.0,0.023]
[1733115821588,0.0017302,96839.0,96833.0,0.1046729]
[1733115821793,0.0017302,96839.0,96834.0,0.023]
[1733115822016,0.0017302,96839.0,96835.0,0.10284521]
[1733115822245,0.0017302,96839.0,96836.0,0.023]
[1733115822711,0.0027302,96839.0,96836.0,0.023]
[1733115823205,0.0037302,96839.0,96836.0,0.023]
[1733115823667,0.0017302,96839.0,96836.0,0.023]
[1733115823898,0.0027302,96839.0,96836.0,0.023]
[1733115824386,0.00616388,96838.0,96836.0,0.023]
[1733115826117,0.00716388,96838.0,96836.0,0.023]
[1733115832064,0.206532,96837.0,96836.0,0.023]
[1733115832481,0.21263487,96837.0,96836.0,0.023]
[1733115833361,0.00610287,96837.0,96836.0,0.023]
[1733115833790,0.2082582,96839.0,96836.0,0.023]
[1733115833993,0.00610287,96837.0,96836.0,0.023]
[1733115834169,0.2082582,96839.0,96836.0,0.023]
[1733115834365,0.00610287,96837.0,96836.0,0.023]
[1733115834598,0.2082582,96839.0,96836.0,0.023]
[1733115834804,0.00610119,96837.0,96836.0,0.023]
[1733115835010,0.0017302,96839.0,96836.0,0.023]
[1733115835330,0.00610283,96838.0,96836.0,0.023]
[1733115835774,0.0017304,96840.0,96836.0,0.023]
[1733115835977,0.00686364,96837.0,96836.0,0.023]
[1733115836160,0.0017302,96838.0,96836.0,0.023]
[1733115836387,0.00694508,96837.0,96836.0,0.023]
[1733115836803,0.0017302,96838.0,96836.0,0.023]
[1733115837273,0.00694508,96837.0,96836.0,0.023]
[1733115837712,0.0017302,96838.0,96836.0,0.023]
[1733115838154,0.00694508,96837.0,96836.0,0.023]
[1733115838381,0.0017302,96838.0,96836.0,0.023]
[1733115838809,0.00694508,96837.0,96836.0,0.023]
[1733115839031,0.0017302,96838.0,96836.0,0.023]
[1733115839258,0.0027302,96838.0,96836.0,0.023]
[1733115839532,0.0027302,96838.0,96837.0,0.229532]
[1733115839753,0.20583427,96847.0,96836.0,0.023]
[1733115839962,0.00691523,96838.0,96836.0,0.023]
[1733115840179,0.19978516,96847.0,96837.0,0.206532]
[1733115840390,0.0017308,96848.0,96847.0,0.09123377]
[1733115840606,0.0017308,96848.0,96847.0,0.21707898]
[1733115841264,0.0017308,96848.0,96847.0,0.26667898]
[1733115842206,0.0017308,96848.0,96847.0,0.26867898]
[1733115842430,0.001731,96859.0,96848.0,0.229509]
[1733115842637,0.001731,96859.0,96848.0,0.33235421]
[1733115843985,0.001731,96859.0,96848.0,0.33435421]
[1733115844676,0.001731,96859.0,96848.0,0.33535421]
[1733115847608,0.001731,96859.0,96848.0,0.33435421]
[1733115848247,0.001731,96859.0,96848.0,0.33735421]
[1733115848463,0.001731,96859.0,96848.0,0.33535421]
[1733115848647,0.001731,96859.0,96848.0,0.33935421]
[1733115850623,0.02848826,96850.0,96848.0,0.33935421]
[1733115850827,0.02848826,96850.0,96849.0,0.12767254]
[1733115851955,0.02848826,96850.0,96849.0,0.12584521]
[1733115852205,0.02848826,96850.0,96849.0,0.21707898]
[1733115852431,0.02848826,96850.0,96849.0,0.22107898]
[1733115852644,0.03549265,96850.0,96849.0,0.22107898]
[1733115853133,0.02848826,96850.0,96849.0,0.22107898]
[1733115853811,0.02848826,96850.0,96849.0,0.22407898]
[1733115854270,0.35689226,96850.0,96849.0,0.09823377]
[1733115854507,0.36389665,96850.0,96849.0,0.09823377]
[1733115855187,0.36389665,96850.0,96849.0,0.09123377]
[1733115855413,0.36389665,96850.0,96849.0,0.09223377]
[1733115855635,0.36389665,96850.0,96849.0,0.09423377]
[1733115855871,0.36389665,96850.0,96849.0,0.09223377]
[1733115856080,0.36389665,96850.0,96849.0,0.09423377]
[1733115856535,0.36389665,96850.0,96849.0,0.09223377]
[1733115856753,0.36389665,96850.0,96849.0,0.09423377]
[1733115856973,0.36389665,96850.0,96849.0,0.09323377]
[1733115856974,0.11159265,96850.0,96849.0,0.09323377]
[1733115857421,0.11159265,96850.0,96849.0,0.09123377]
[1733115857869,0.11159265,96850.0,96849.0,0.09423377]
[1733115858086,0.03549265,96850.0,96849.0,0.09423377]
[1733115858312,0.03549265,96850.0,96849.0,0.09723377]
[1733115858530,0.03549265,96850.0,96849.0,0.09423377]
[1733115859037,0.03549265,96850.0,96849.0,0.09823377]
[1733115859923,0.08335755,96850.0,96849.0,0.09823377]
[1733115860144,0.08335755,96850.0,96849.0,0.007]
[1733115860359,0.08335755,96850.0,96849.0,0.09823377]
[1733115861423,0.08335755,96850.0,96849.0,0.007]
[1733115861640,0.08335755,96850.0,96849.0,0.09823377]
[1733115866509,0.08335755,96850.0,96849.0,0.007]
[1733115866733,0.15925755,96850.0,96849.0,0.007]
[1733115867422,0.15925755,96850.0,96849.0,0.004]
[1733115867615,0.206507,96849.0,96847.0,0.0017298]
[1733115868059,0.00701766,96848.0,96847.0,0.0017298]
[1733115869202,0.00701766,96848.0,96847.0,0.0057298]
[1733115869861,0.00701766,96848.0,96847.0,0.0087298]
[1733115870329,0.08361766,96848.0,96847.0,0.0057298]
[1733115870545,0.13031766,96848.0,96847.0,0.0057298]
[1733115870767,0.13031766,96848.0,96847.0,0.0087298]
[1733115871486,0.13031766,96848.0,96847.0,0.0017298]
[1733115871684,0.13031766,96848.0,96847.0,0.0037298]
[1733115873465,0.13031766,96848.0,96847.0,0.0057298]
[1733115874159,0.13031766,96848.0,96847.0,0.0037298]
[1733115874390,0.13031766,96848.0,96847.0,0.0017298]
[1733115874816,0.13231766,96848.0,96847.0,0.0017298]
[1733115875507,0.13331766,96848.0,96847.0,0.0017298]
[1733115875733,0.2429291,96848.0,96847.0,0.0017298]
[1733115875949,0.3959291,96848.0,96847.0,0.0017298]
[1733115876857,0.3949291,96848.0,96847.0,0.0017298]
[1733115877074,0.3959291,96848.0,96847.0,0.0017298]
[1733115877501,0.3949291,96848.0,96847.0,0.0017298]
[1733115877735,0.3919291,96848.0,96847.0,0.0017298]
[1733115878002,0.3979291,96848.0,96847.0,0.0017298]
[1733115878628,0.45333776,96848.0,96847.0,0.0017298]
[1733115878856,0.3979291,96848.0,96847.0,0.0017298]
[1733115881316,0.3979291,96848.0,96847.0,8e-07]
[1733115883110,0.206549,96829.0,96824.0,0.0008651]
[1733115883347,0.58469421,96829.0,96824.0,0.0008651]
[1733115883559,0.59171722,96829.0,96824.0,0.0008651]
[1733115883790,0.60048345,96829.0,96824.0,0.0008651]
[1733115883996,0.59171722,96829.0,96824.0,0.0008651]
[1733115884438,0.65949923,96829.0,96824.0,0.0008651]
[1733115884654,0.68555936,96829.0,96824.0,0.0008651]
[1733115884870,0.68355936,96829.0,96824.0,0.0008651]
[1733115885110,0.68555936,96829.0,96824.0,0.0008651]
[1733115885542,0.68055936,96829.0,96824.0,0.0008651]
[1733115885778,0.68655936,96829.0,96828.0,1e-07]
[1733115886464,0.68455936,96829.0,96828.0,1e-07]
[1733115886733,0.68655936,96829.0,96828.0,1e-07]
[1733115889045,0.63409222,96829.0,96828.0,1e-07]
[1733115892537,0.64285845,96829.0,96828.0,1e-07]
[1733115897229,0.63409222,96829.0,96828.0,1e-07]
[1733115897445,0.64285845,96829.0,96828.0,1e-07]
[1733115900528,0.35879222,96829.0,96828.0,1e-07]
[1733115900785,0.25594701,96829.0,96828.0,1e-07]
[1733115901018,0.24263214,96829.0,96828.0,1e-07]
[1733115901427,0.03608314,96829.0,96828.0,1e-07]
[1733115901847,0.01302301,96829.0,96828.0,1e-07]
[1733115902299,0.01502301,96829.0,96828.0,1e-07]
[1733115902522,0.00902301,96829.0,96828.0,1e-07]
[1733115902724,0.00702301,96829.0,96828.0,0.09123387]
[1733115902939,0.00702301,96829.0,96828.0,0.09223387]
[1733115903206,0.01202301,96829.0,96828.0,0.09223387]
[1733115903425,0.01202282,96829.0,96828.0,0.09123387]
[1733115903687,0.00702282,96829.0,96828.0,0.09123387]
[1733115903885,0.00702282,96829.0,96828.0,0.09223387]
[1733115904095,0.206544,96832.0,96828.0,0.09223387]
[1733115904302,0.00702693,96829.0,96828.0,0.09223387]
[1733115904503,0.206544,96832.0,96828.0,0.09223387]
[1733115904716,0.00702282,96829.0,96828.0,0.09223387]
[1733115904941,0.206544,96832.0,96828.0,0.09223387]
[1733115905149,0.00702282,96829.0,96828.0,0.09223387]
[1733115905355,0.413088,96832.0,96828.0,0.09223387]
[1733115905574,0.00702077,96829.0,96828.0,0.09223387]
[1733115905809,0.413088,96832.0,96828.0,1e-07]
[1733115906040,0.413088,96832.0,96828.0,0.0010001]
[1733115906282,0.206547,96830.0,96828.0,0.0010001]
[1733115906492,0.236547,96830.0,96828.0,1e-07]
[1733115906702,0.00707362,96829.0,96828.0,1e-07]
[1733115906917,0.00707362,96829.0,96828.0,0.0010001]
[1733115907348,0.00880382,96829.0,96828.0,0.09123387]
[1733115907594,0.00880382,96829.0,96828.0,0.21823387]
[1733115907818,0.0017302,96829.0,96828.0,0.21923387]
[1733115908673,0.00878121,96829.0,96828.0,0.21923387]
[1733115909106,0.00878121,96829.0,96828.0,0.21823387]
[1733115909951,0.00878121,96829.0,96828.0,0.21923387]
[1733115910680,0.00878121,96829.0,96828.0,0.21823387]
[1733115911110,0.00878121,96829.0,96828.0,0.42678487]
[1733115911337,0.00878121,96829.0,96828.0,0.52863008]
[1733115911551,0.0017302,96829.0,96828.0,0.55163008]
[1733115912467,0.0017302,96829.0,96828.0,0.55063008]
[1733115912860,0.0017302,96829.0,96828.0,0.55463008]
[1733115913298,0.0017302,96829.0,96828.0,0.55063008]
[1733115913567,0.0027302,96829.0,96828.0,0.55963008]
[1733115913768,0.0037302,96829.0,96828.0,0.56663008]
[1733115921648,0.0037302,96829.0,96828.0,0.47539631]
[1733115921821,0.0037302,96829.0,96828.0,0.56663008]
[1733115924558,0.00225789,96829.0,96828.0,0.56663008]
[1733115926383,0.00225789,96829.0,96828.0,0.47539631]
[1733115926647,0.00225789,96829.0,96828.0,0.56663008]
[1733115930314,0.00225789,96829.0,96828.0,0.36007908]
[1733115930646,0.00930383,96829.0,96828.0,0.36007908]
[1733115930865,0.00225789,96829.0,96828.0,0.36007908]
[1733115933437,0.00225789,96829.0,96828.0,0.26884531]
[1733115933638,0.00225789,96829.0,96828.0,0.36007908]
[1733115934315,0.00225789,96829.0,96828.0,0.15543387]
[1733115934524,0.00225789,96829.0,96828.0,0.10723387]
[1733115936341,0.0070239,96829.0,96828.0,0.10723387]
[1733115936566,0.2135729,96829.0,96828.0,0.10723387]
[1733115937055,0.0070239,96829.0,96828.0,0.10723387]
[1733115937476,0.0060239,96829.0,96828.0,0.10023387]
[1733115937802,0.0050239,96829.0,96828.0,0.09523387]
[1733115938210,0.0060239,96829.0,96828.0,0.10123387]
[1733115941070,0.0059239,96829.0,96828.0,0.10123387]
[1733115948859,0.00115789,96829.0,96828.0,0.18303387]
[1733115949090,0.00115789,96829.0,96828.0,0.30887908]
[1733115949304,0.00115789,96829.0,96828.0,0.35727908]
[1733115951155,0.00115789,96829.0,96828.0,0.35327908]
[1733115951590,0.00115789,96829.0,96828.0,0.35727908]
[1733115951804,0.00115789,96829.0,96828.0,0.55727908]
[1733115952009,0.00115789,96829.0,96828.0,0.54727908]
[1733115952010,0.00015789,96829.0,96828.0,0.54727908]
[1733115953421,0.00015789,96829.0,96828.0,0.55627908]
[1733115953627,0.00115789,96829.0,96828.0,0.56427908]
[1733115959049,0.00115789,96829.0,96828.0,0.71427908]
[1733115959701,0.00115789,96829.0,96828.0,1.41427908]
[1733115963202,0.00115789,96829.0,96828.0,1.31427908]
[1733115963415,0.00115789,96829.0,96828.0,1.41427908]
[1733115963623,0.00115789,96829.0,96828.0,1.31427908]
[1733115963841,0.00115789,96829.0,96828.0,1.41427908]
[1733115964401,0.00115789,96829.0,96828.0,1.31427908]
[1733115964926,0.00115789,96829.0,96828.0,1.41427908]
[1733115965955,0.00039275,96857.0,96828.0,1.41427908]
[1733115965956,0.00726688,96850.0,96849.0,0.44654077]
[1733115966110,0.00726688,96850.0,96849.0,0.54938598]
[1733115966745,0.00726688,96850.0,96849.0,0.64938598]
[1733115966956,0.00726688,96850.0,96849.0,0.89938598]
[1733115967161,0.00726688,96850.0,96849.0,0.90238598]
[1733115967833,0.00726688,96850.0,96849.0,1.61138598]
[1733115968250,0.00726688,96850.0,96849.0,1.60838598]
[1733115969686,0.00726688,96850.0,96849.0,1.61338598]
[1733115970136,0.00726688,96850.0,96849.0,1.63410099]
[1733115971675,0.00726688,96850.0,96849.0,1.6476087]
[1733115971890,0.00039275,96857.0,96854.0,0.29123377]
[1733115972090,0.00039275,96857.0,96854.0,1.11707898]
[1733115972297,0.00039275,96857.0,96854.0,1.32357498]
[1733115972502,0.00039275,96857.0,96854.0,1.47357498]
[1733115973109,0.00232458,96855.0,96854.0,1.47357498]
[1733115973311,0.00232458,96855.0,96854.0,1.47657498]
[1733115973775,0.00232458,96855.0,96854.0,1.47357498]
[1733115973981,0.00232458,96855.0,96854.0,1.48557498]
[1733115974413,0.00232458,96855.0,96854.0,1.47857498]
[1733115974636,0.00232458,96855.0,96854.0,1.48757498]
[1733115975906,1.36773175,96861.0,96860.0,0.29123377]
[1733115976033,1.36773175,96861.0,96860.0,1.11707898]
[1733115976244,1.37255025,96861.0,96860.0,1.11707898]
[1733115977078,1.37255025,96861.0,96860.0,1.12107898]
[1733115977701,1.37255025,96861.0,96860.0,1.12807898]
[1733115978223,1.36755025,96861.0,96860.0,1.12807898]
[1733115978430,1.36755025,96861.0,96860.0,1.02807898]
[1733115978649,1.36755025,96861.0,96860.0,1.12807898]
[1733115980146,1.36755025,96861.0,96860.0,1.17607898]
[1733115980368,1.36755025,96861.0,96860.0,1.25437898]
[1733115980577,1.36755025,96861.0,96860.0,1.40437898]
[1733115981000,1.34431396,96861.0,96860.0,1.40437898]
[1733115981426,1.34349007,96861.0,96860.0,1.40437898]
[1733115981854,1.30734904,96861.0,96860.0,1.40437898]
[1733115982060,1.30734904,96861.0,96860.0,1.41107071]
[1733115982283,1.30734904,96861.0,96860.0,1.42007071]
[1733115982508,1.30734904,96861.0,96860.0,1.41107071]
[1733115982707,1.30734904,96861.0,96860.0,1.40707071]
[1733115983048,1.30734904,96861.0,96860.0,1.41407071]
[1733115983279,1.20410904,96861.0,96860.0,1.41407071]
[1733115983485,1.19610904,96861.0,96860.0,1.40707071]
[1733115983692,1.11351704,96861.0,96860.0,1.40707071]
[1733115983895,1.09286904,96861.0,96860.0,1.40807071]
[1733115984525,1.06178904,96861.0,96860.0,1.40807071]
[1733115984724,0.95854904,96861.0,96860.0,1.40807071]
[1733115984931,0.92954904,96861.0,96860.0,1.40807071]
[1733115985921,0.73564313,96861.0,96860.0,1.40807071]
[1733115986792,0.71586033,96861.0,96860.0,1.40807071]
[1733115986936,0.69521233,96861.0,96860.0,1.40807071]
[1733115987157,0.63326833,96861.0,96860.0,1.40707071]
[1733115987342,0.60426833,96861.0,96860.0,1.40707071]
[1733115987555,0.57370833,96861.0,96860.0,1.40807071]
[1733115987844,0.51176433,96861.0,96860.0,1.40807071]
[1733115988476,0.46146833,96861.0,96860.0,1.40807071]
[1733115988910,0.32922833,96861.0,96860.0,1.40807071]
[1733115989326,0.3245385,96861.0,96860.0,0.70807071]
[1733115989541,0.2866785,96861.0,96860.0,0.70807071]
[1733115989750,0.22942521,96861.0,96860.0,0.70807071]
[1733115989933,0.20541562,96861.0,96860.0,0.70807071]
[1733115990173,0.18007691,96861.0,96860.0,0.70807071]
[1733115990379,0.14720691,96861.0,96860.0,0.70807071]
[1733115990846,0.12655891,96861.0,96860.0,0.70807071]
[1733115991056,0.08526291,96861.0,96860.0,0.70807071]
[1733115991240,0.06461491,96861.0,96860.0,0.70807071]
[1733115991680,0.03578491,96861.0,96860.0,0.70807071]
[1733115992318,0.03578491,96861.0,96860.0,1.40807071]
[1733115992319,9.1e-07,96861.0,96860.0,1.40807071]
[1733115995236,0.0017308,96901.0,96886.0,0.29123377]
[1733115995461,0.0017308,96901.0,96886.0,1.32350698]
[1733115996340,0.0017308,96901.0,96886.0,0.62350698]
[1733115996561,0.0017308,96901.0,96886.0,0.62950698]
[1733115997462,0.0017308,96901.0,96891.0,0.39765077]
[1733115997692,0.0017308,96901.0,96891.0,0.52349598]
[1733115998709,0.00190794,96892.0,96891.0,0.52349598]
[1733115998925,0.00190794,96892.0,96891.0,0.53249598]
[1733115999349,0.00190794,96892.0,96891.0,1.23249598]
[1733115999808,0.00190794,96892.0,96891.0,1.23749598]
[1733116002090,0.00190794,96892.0,96891.0,1.63202122]
[1733116002336,0.0017308,96901.0,96900.0,0.67063177]
[1733116002553,0.0017308,96901.0,96900.0,1.47347698]
[1733116002727,0.0804,96924.0,96920.0,0.32058877]
[1733116002941,0.0804,96924.0,96920.0,0.42343398]
[1733116004075,0.0804,96924.0,96920.0,0.42543398]
[1733116004501,0.0804,96924.0,96920.0,1.12543398]
[1733116004983,0.0804,96924.0,96920.0,1.12943398]
[1733116005900,0.0804,96924.0,96920.0,0.90007898]
[1733116006101,0.131831,96921.0,96920.0,0.90007898]
[1733116007280,0.131831,96921.0,96920.0,1.10643398]
[1733116008775,0.083231,96921.0,96920.0,1.10643398]
[1733116011128,0.083231,96921.0,96920.0,0.40643398]
[1733116011360,0.08798194,96921.0,96920.0,0.40643398]
[1733116013617,0.37892917,96921.0,96920.0,0.006]
[1733116013822,0.36513494,96921.0,96920.0,0.006]
[1733116014038,0.15878194,96921.0,96920.0,0.20007898]
[1733116014473,0.15878194,96921.0,96920.0,0.19807898]
[1733116014888,0.15878194,96921.0,96920.0,0.19507898]
[1733116015099,0.15878194,96921.0,96920.0,0.19807898]
[1733116015272,0.15878194,96921.0,96920.0,0.19407898]
[1733116015492,0.11098194,96921.0,96920.0,0.19607898]